Cogmind - Beta 17.1 --- EXPLORER MODE // 2026.09.18 @ 23:39:37 Player: empy the penguin Result: Self-destructed Performance ------------- Evolutions (1) 500 Regions Visited (6) 1200 Robots Destroyed (27) 135 Value Destroyed (637) 637 Prototype IDs (23) 460 Alien Tech Used (0) 0 Bonus (407) 407 TOTAL SCORE: 3339 Bonus ------- Follower Combat Kills 170 Aligned with FarCom 300 Friendly Fire -63 Cogmind --------- Core Integrity 348/400 Matter 284/300 Energy 275/275 System Corruption 1% Temperature Cool (0) Movement Treading (240) Ox1 Location -8/Mines Parts ------- > --- POWER (1) -------- Deuterium Engine > --- PROPULSION (2) --- Light Treads Improved Treads > --- UTILITY (5) ------ Scrap Suit Large Storage Unit > --- WEAPON (2) ------- Particle Cannon Field Lobotomy Kit > --- INVENTORY (15) --- Reinforced Ion Engine Light Nuclear Core Compact Matter Pod (150) Structural Scanner Advanced Visual Processing Unit ECM Suite Core Shielding Improved Utility Shielding Light Armor Plating Shield Generator EM Pulse Gun Light EM Pulse Cannon Rocket Launcher Heavy Explosive Trap Heavy Explosive Trap Peak State ------------ > --- POWER ------------ Deuterium Engine > --- PROPULSION ------- Light Treads Improved Treads > --- UTILITY ---------- Scrap Suit Large Storage Unit > --- WEAPON ----------- Particle Cannon Field Lobotomy Kit > --- INVENTORY -------- Reinforced Ion Engine Light Nuclear Core Compact Matter Pod Structural Scanner Advanced Visual Processing Unit ECM Suite Core Shielding Improved Utility Shielding Light Armor Plating Shield Generator EM Pulse Gun Light EM Pulse Cannon Rocket Launcher Heavy Explosive Trap Heavy Explosive Trap [Rating: 29] Favorites ----------- Power Deuterium Engine Engine Deuterium Engine Power Core Light Nuclear Core Propulsion Light Treads Treads Light Treads Utility Large Storage Unit Device Sensor Array Storage Large Storage Unit Processor Signal Interpreter Protection Utility Shielding Weapon Assault Rifle Energy Cannon Particle Cannon Ballistic Gun Assault Rifle Launcher Rocket Launcher Special Weapon Field Lobotomy Kit Build | -11 -10 -10 -9 -9 -9 -8 ------- Run | Yrd Mat Min Mat Min Exi Min Slots Evolved 3 | . 1 . 2 . . . Power . | . . . . . . . Propulsion . | . . . . . . . Utility 3 | . 1 . 2 . . . Weapon . | . . . . . . . Parts Attached 21 | 8 6 2 2 2 1 . Power 5 | 1 3 . 1 . . . Engine 4 | 1 2 . 1 . . . Core 1 | . 1 . . . . . Reactor . | . . . . . . . Propulsion 4 | 2 . . . 2 . . Treads 4 | 2 . . . 2 . . Leg . | . . . . . . . Wheel . | . . . . . . . Hover . | . . . . . . . Flight . | . . . . . . . Utility 7 | 2 3 1 1 . . . Device 3 | 1 . 1 1 . . . Storage 2 | 1 1 . . . . . Processor 1 | . 1 . . . . . Hackware . | . . . . . . . Protection 1 | . 1 . . . . . Artifact . | . . . . . . . Weapon 5 | 3 . 1 . . 1 . Energy Gun . | . . . . . . . Energy Cannon . | . . . . . . . Ballistic Gun 3 | 3 . . . . . . Ballistic Cannon . | . . . . . . . Launcher 1 | . . 1 . . . . Special Weapon 1 | . . . . . 1 . Impact Weapon . | . . . . . . . Slashing Weapon . | . . . . . . . Piercing Weapon . | . . . . . . . Special Melee Weapon . | . . . . . . . Unidentified Prototypes . | . . . . . . . Parts Lost . | . . . . . . . Power . | . . . . . . . Propulsion . | . . . . . . . Utility . | . . . . . . . Weapon . | . . . . . . . Highest Loss Streak . | . . . . . . . To Critical Strikes . | . . . . . . . Average Backups 11 | 1 6 12 12 13 12 13 Power 1 | . 1 2 1 1 2 2 Propulsion . | . . . . . . . Utility 7 | . 4 7 7 9 8 8 Weapon 2 | . 1 2 3 2 2 3 Tool/Special . | . . . . . . . Unused Backups 15 | . . 1 1 3 . 10 Power 2 | . . . 1 . . 1 Propulsion . | . . . . . . . Utility 11 | . . 1 . 2 . 8 Weapon 2 | . . . . 1 . 1 Tool/Special . | . . . . . . . Average Slot Usage (%) 91 | . 99 99 89 89 75 70 Engine 6 | . 7 . 6 10 10 10 Core 4 | . 4 12 3 . . . Treads 22 | . 24 25 20 19 20 20 Device 14 | . 12 11 20 20 12 10 Storage 10 | . 12 12 10 10 10 10 Processor 8 | . 6 12 10 10 2 . Energy Cannon 7 | . . . 3 19 13 10 Ballistic Gun 8 | . 25 14 5 . . . Launcher 4 | . . 9 10 . . . Special Weapon 1 | . . . . . 6 10 Peak Build Rating 29 | 7 10 13 22 23 29 29 Average Rating 17 | 5 8 12 21 22 26 29 On Entrance 14 | . 7 10 13 22 23 29 Avg Prop Armor Cover (%) . | . . . . . . . Naked Turns . | . . . . . . . Heaviest Build 45 | 17 29 32 42 42 45 45 Greatest Support 43 | 40 40 40 40 43 43 43 Greatest Overweight (x) 1 | . . . 1 1 1 1 Average Overweight (x) . | . . . . . . 1 Largest Inventory Capacity 15 | 10 15 15 15 15 15 15 Average Capacity 14 | 9 11 15 15 15 15 15 Most Carried 15 | 4 9 15 14 15 15 15 Average Carried 12 | 1 6 13 12 14 14 15 Final Capacity 15 | 10 15 15 15 15 15 15 Final Carried 15 | 4 9 15 14 14 15 15 Scrap Suit Usage (%) 51 | . . . 100 100 100 100 Parts Cannibalized 3 | . . . . 3 . . Class Distribution -------------------- 100% | Hacker-Mutant Dominant Class ---------------- Hacker-Mutant | -10/Materials Hacker-Mutant | -10/Mines Hacker-Mutant | -9/Materials Hacker-Mutant | -9/Mines Hacker-Mutant | -9/Exiles Hacker-Mutant | -8/Mines Resources | -11 -10 -10 -9 -9 -9 -8 ----------- Run | Yrd Mat Min Mat Min Exi Min Matter Collected 781 | 288 264 121 53 55 . . Remotely . | . . . . . . . Salvage Created 785 | 92 325 101 109 158 . . Parts 49 | 2 21 8 7 11 . . Haulers Intercepted . | . . . . . . . Recyclers Shooed 1 | . 1 . . . . . Parts Field Recycled . | . . . . . . . Retrieved Matter . | . . . . . . . Parts Self-Destructed . | . . . . . . . Prevented . | . . . . . . . Parts Restored . | . . . . . . . Kills | -11 -10 -10 -9 -9 -9 -8 ------- Run | Yrd Mat Min Mat Min Exi Min Combat Hostiles Destroyed 20 | . 6 4 4 6 . . Guns 13 | . 6 4 3 . . . Cannons 2 | . . . 1 1 . . AOE 5 | . . . . 5 . . Classes Destroyed 6 | 1 3 1 . 1 . . Worker 1 | . 1 . . . . . Builder 1 | . . . . 1 . . Recycler 1 | 1 . . . . . . Watcher 2 | . 2 . . . . . Swarmer 8 | . . 2 2 4 . . Grunt 14 | . 6 2 2 4 . . Best Kill Streak 6 | 1 4 2 2 6 . . Combat Bots Only 6 | . 2 2 2 6 . . Max Kills in Single Turn 7 | 1 1 1 1 7 . . Gunslinging . | . . . . . . . Exploded 5 | . . . . 5 . . Melee . | . . . . . . . Uniques/NPCs Destroyed . | . . . . . . . Combat | -11 -10 -10 -9 -9 -9 -8 -------- Run | Yrd Mat Min Mat Min Exi Min Hostile Shots Fired 85 | . 31 21 24 9 . . Missed 24 | . 10 8 5 1 . . Hits 61 | . 21 13 19 8 . . Projectile 61 | . 21 13 19 8 . . Critical Strikes 1 | . 1 . . . . . Damage Taken 485 | . 184 92 142 67 . . Core 99 | . 36 11 42 10 . . Absorbed by Shields . | . . . . . . . Ignored by Resistances 314 | . 115 63 91 45 . . Regen/Repaired (Parts) 25 | . . . 5 20 . . Core Remaining (%) 90 | 100 . 81 . . . . Volleys Fired 71 | 2 35 13 17 4 . . Largest 2 | 2 2 2 1 2 . . Hottest 124 | 40 40 40 68 124 . . Shots Fired 127 | 4 70 26 17 8 2 . Gun 111 | 4 70 26 11 . . . Cannon 16 | . . . 6 8 2 . Launcher . | . . . . . . . Special . | . . . . . . . Kinetic 111 | 4 70 26 11 . . . Thermal 12 | . . . 6 4 2 . Explosive . | . . . . . . . Electromagnetic 4 | . . . . 4 . . Robot Hit Streak 13 | 4 12 13 3 9 10 . Robot Miss Streak 4 | . 4 3 2 . . . Penetration Max . | . . . . . . . Secondary Targets 2 | . 2 . . . . . Max Gunslinging Chain 1 | . 1 . . . . . Shots Hit Robots 84 | 4 44 18 10 7 1 . Core Hits 46 | 2 22 9 5 8 . . Critical Kills . | . . . . . . . Critical Parts Destroyed 1 | . . . 1 . . . Critical Strikes 1 | . . . 1 . . . Destroy 1 | . . . 1 . . . Melee Attacks . | . . . . . . . Impact . | . . . . . . . Slashing . | . . . . . . . Piercing . | . . . . . . . Sneak Attacks . | . . . . . . . Combat Hostiles . | . . . . . . . Follow-up Attacks . | . . . . . . . Damage Inflicted 1333 | 39 442 192 154 485 21 . Guns 742 | 39 442 189 72 . . . Cannons 224 | . . . 82 121 21 . Explosions 360 | . . . . 360 . . Melee . | . . . . . . . Ramming 7 | . . 3 . 4 . . Kinetic 742 | 39 442 189 72 . . . Thermal 505 | . . . 82 402 21 . Explosive . | . . . . . . . Electromagnetic 79 | . . . . 79 . . Impact . | . . . . . . . Slashing . | . . . . . . . Piercing . | . . . . . . . Highest Corruption 1 | . . 1 1 1 1 1 Average Corruption 1 | . . 1 1 1 1 1 Corruption Purged . | . . . . . . . Corruption Blocked . | . . . . . . . Effects 36 | . . 9 6 11 10 . Message Errors 8 | . . 1 4 3 . . Matter Fused 5 | . . 2 . 2 1 . Heat Flow Errors 2 | . . . . 2 . . Energy Discharges 6 | . . 1 . 2 3 . Parts Fused 1 | . . 1 . . . . Data Loss (minor) 6 | . . 1 1 2 2 . Data Loss (major) 2 | . . 2 . . . . Misfires 2 | . . . . . 2 . Alerts 4 | . . 1 1 . 2 . Overload Shots . | . . . . . . . Overflow Damage 1 | . . . . 1 . . Projectiles 1 | . . . . 1 . . Explosions . | . . . . . . . Melee . | . . . . . . . Knockbacks . | . . . . . . . Impact . | . . . . . . . Kinetic . | . . . . . . . Secondary . | . . . . . . . Self-Inflicted Damage 12 | . . . . 12 . . Shots 2 | . . . . 2 . . Rammed 2 | . . 2 . . . . Targets Rammed 3 | . . 2 . 1 . . Kicked . | . . . . . . . Crushed 1 | . . . . 1 . . Highest Temperature 216 | . 19 20 108 216 28 . Average Temperature 32 | . 8 6 45 69 15 . Received Heat Transfer 351 | . 189 36 102 24 . . Siege Activations . | . . . . . . . Martial Activations . | . . . . . . . Shielding Activations . | . . . . . . . Robots Disrupted . | . . . . . . . Combat Hostiles . | . . . . . . . Robots Corrupted . | . . . . . . . Combat Hostiles . | . . . . . . . Parts Fried . | . . . . . . . Impact Corruptions . | . . . . . . . Robots Melted . | . . . . . . . Combat Hostiles . | . . . . . . . Parts Melted . | . . . . . . . Heat Transferred 709 | . . . 148 524 37 . Parts Sabotaged . | . . . . . . . Parts Stolen . | . . . . . . . Parts Stripped . | . . . . . . . Power Chain Reactions 1 | . . . . 1 . . Alert | -11 -10 -10 -9 -9 -9 -8 ------- Run | Yrd Mat Min Mat Min Exi Min Maximum Alert Level . | . . . . . . . Low Security (%) 100 | 100 100 100 100 100 . 100 Level 1 . | . . . . . . . Level 2 . | . . . . . . . Level 3 . | . . . . . . . Level 4 . | . . . . . . . Level 5 . | . . . . . . . High Security . | . . . . . . . Max Security . | . . . . . . . Peak Influence 180 | 5 70 50 68 180 . . Initial 5 | . . . . 5 . . Average 9 | . 7 2 15 18 . . Influence Increases 773 | 5 195 115 258 200 . . Destroy 0b10 Robot/C 520 | . 120 80 200 120 . . Destroy 0b10 Robot/NC 30 | 5 15 . 5 5 . . Destroy Leader 114 | . 34 20 40 20 . . Allied During Kill 9 | . . . 8 1 . . Successful Hack 26 | . 26 . . . . . Disable Machine 16 | . . . 4 12 . . Destroy Structure 28 | . . . 1 27 . . Lose Combat Pursuer 30 | . . 15 . 15 . . Influence Decreases 773 | 5 195 115 237 221 . . Entered New Map 16 | . . . . 16 . . Time Decay 739 | 5 195 115 219 205 . . Lost Ally 18 | . . . 18 . . . Squads Dispatched 1 | . . . 1 . . . Investigation 1 | . . . 1 . . . Extermination . | . . . . . . . Reinforcement . | . . . . . . . Assault . | . . . . . . . Garrison . | . . . . . . . Intercept . | . . . . . . . Searches Triggered . | . . . . . . . Construction Impeded . | . . . . . . . Haulers Reinforced . | . . . . . . . Active Scanning Responses . | . . . . . . . Cargo Convoy Interrupts . | . . . . . . . Stealth | -11 -10 -10 -9 -9 -9 -8 --------- Run | Yrd Mat Min Mat Min Exi Min Distress Signals 1 | . . . 1 . . . Communications Jammed . | . . . . . . . Distress Signals . | . . . . . . . Times Spotted 40 | . 14 5 13 8 . . Peak Tracking Total 5 | . 3 2 5 5 . . Tactical Retreats 2 | . . 1 . 1 . . Traps | -11 -10 -10 -9 -9 -9 -8 ------- Run | Yrd Mat Min Mat Min Exi Min Traps Triggered 3 | . 1 1 1 . . . Indirectly . | . . . . . . . Trap Hack Attempts . | . . . . . . . Triggered . | . . . . . . . Disarmed . | . . . . . . . Reprogrammed . | . . . . . . . Reused . | . . . . . . . Traps Extracted . | . . . . . . . Installed . | . . . . . . . Triggered . | . . . . . . . Most Traps Carried 2 | . . . . 2 2 2 Machines | -11 -10 -10 -9 -9 -9 -8 ---------- Run | Yrd Mat Min Mat Min Exi Min Machines Disabled 4 | . . . 1 3 . . Max in Single Turn 3 | . . . 1 3 . . Machines Repaired . | . . . . . . . Machines Dismantled . | . . . . . . . Machines Sabotaged . | . . . . . . . Overloaded Fab Kills . | . . . . . . . Hacking | -11 -10 -10 -9 -9 -9 -8 --------- Run | Yrd Mat Min Mat Min Exi Min Machines Accessed 7 | . 4 1 1 . 1 . Terminals 3 | . 3 . . . . . Fabricators . | . . . . . . . Repair Stations 1 | . . . 1 . . . Recycling Units 1 | . 1 . . . . . Scanalyzers . | . . . . . . . Garrison Access . | . . . . . . . Total Hacks 17 | . 11 1 4 . 1 . Successful 7 | . 3 1 2 . 1 . Failed 10 | . 8 . 2 . . . Catastrophic . | . . . . . . . Database Lockouts . | . . . . . . . Manual 11 | . 10 . . . 1 . Terminals 9 | . 9 . . . . . Fabricators . | . . . . . . . Repair Stations 4 | . . . 4 . . . Recycling Units 2 | . 2 . . . . . Scanalyzers . | . . . . . . . Garrison Access . | . . . . . . . Terminal Hacks 4 | . 2 1 . . 1 . Open Door 1 | . . 1 . . . . Branch Access Points 1 | . 1 . . . . . Registered Components 1 | . 1 . . . . . Proto ID Catalog 1 | . . . . . 1 . Fabricator Hacks . | . . . . . . . Repair Station Hacks 2 | . . . 2 . . . Scan Component 1 | . . . 1 . . . Repair 1 | . . . 1 . . . Recycling Unit Hacks . | . . . . . . . Scanalyzer . | . . . . . . . Garrison Access Hacks . | . . . . . . . Unauthorized Hacks . | . . . . . . . Terminals . | . . . . . . . Fabricators . | . . . . . . . Repair Stations . | . . . . . . . Recycling Units . | . . . . . . . Scanalyzers . | . . . . . . . Garrison Access . | . . . . . . . Data Cores Recovered . | . . . . . . . Used . | . . . . . . . Hacking Detections 5 | . 4 . 1 . . . Full Trace Events 1 | . . . 1 . . . Feedback Events . | . . . . . . . Feedback Blocked . | . . . . . . . Robot Schematics Acquired . | . . . . . . . Robots Built . | . . . . . . . Authchips . | . . . . . . . Time . | . . . . . . . Total Robot Build Rating . | . . . . . . . Part Schematics Acquired . | . . . . . . . Parts Built . | . . . . . . . Authchips . | . . . . . . . Time . | . . . . . . . Total Part Build Rating . | . . . . . . . Part Studies Acquired . | . . . . . . . Parts Repaired 1 | . . . 1 . . . Time 26 | . . . 26 . . . Parts Recycled . | . . . . . . . Recycled Matter . | . . . . . . . Retrieved Matter . | . . . . . . . Retrieved Components . | . . . . . . . Parts Scanalyzed . | . . . . . . . Part Schematics Acquired . | . . . . . . . Parts Damaged . | . . . . . . . Bothacking | -11 -10 -10 -9 -9 -9 -8 ------------ Run | Yrd Mat Min Mat Min Exi Min Used RIF Installer . | . . . . . . . Robots Hacked . | . . . . . . . Non-combat . | . . . . . . . Combat . | . . . . . . . Robot Hacks Applied . | . . . . . . . Relay Couplers Released . | . . . . . . . Fabnet Peak Effective % . | . . . . . . . Robots Rewired . | . . . . . . . Allies Hacked . | . . . . . . . Hacks Repelled . | . . . . . . . Allies | -11 -10 -10 -9 -9 -9 -8 -------- Run | Yrd Mat Min Mat Min Exi Min Total Allies 3 | . . 3 . . . . Largest Group 3 | . . 3 3 2 . . Highest-Rated Group 40 | . . 40 40 24 . . Highest-Rated Ally 16 | . . 16 16 16 . . Total Orders . | . . . . . . . Ally Attacks 47 | . . . 45 2 . . Total Damage 489 | . . . 489 . . . Kills 7 | . . . 7 . . . Allies Corrupted . | . . . . . . . Allies Melted . | . . . . . . . Intel | -11 -10 -10 -9 -9 -9 -8 ------- Run | Yrd Mat Min Mat Min Exi Min Active Infowar (turns) 4502 | 147 790 1594 506 1207 258 . Sensors 4502 | 147 790 1594 506 1207 258 . Robot Analysis Total . | . . . . . . . Derelict Logs Recovered 3 | . . 1 . 2 . . Drone Launches . | . . . . . . . Drone Recoveries . | . . . . . . . Exploration | -11 -10 -10 -9 -9 -9 -8 ------------- Run | Yrd Mat Min Mat Min Exi Min Turns Passed 5284 | 171 790 1597 506 1207 1003 10 Spaces Moved 2783 | 105 421 927 236 594 496 4 Core 16 | 16 . . . . . . Treads 2767 | 89 421 927 236 594 496 4 Legs . | . . . . . . . Wheels . | . . . . . . . Hover . | . . . . . . . Flight . | . . . . . . . Fastest Speed 50 | 50 160 160 160 160 160 240 Average Speed 172 | 143 160 160 187 175 201 240 Slowest Speed 240 | 160 160 160 240 240 240 240 Overloaded Moves . | . . . . . . . Propulsion Burnouts . | . . . . . . . Robots Hopped . | . . . . . . . Potential Cave-ins . | . . . . . . . Cave-ins Triggered . | . . . . . . . Exploration Rate (%) 49 | 4 55 98 21 79 83 3 Regions Visited 6 Branch Regions 4 Pre-discovered Areas 1 | . . 1 . . . . Known Exits Taken 6 | 1 1 1 1 1 1 . Unknown Exits Taken . | . . . . . . . Scrap Searched 3 | . . 1 . 2 . . Spaces Dug . | . . . . . . . Terrain Destroyed 29 | . . . . 29 . . Melee . | . . . . . . . Projectile . | . . . . . . . AOE 29 | . . . . 29 . . Terrain Rammed . | . . . . . . . Walls Destroyed . | . . . . . . . Machines Disabled . | . . . . . . . Actions | -11 -10 -10 -9 -9 -9 -8 --------- Run | Yrd Mat Min Mat Min Exi Min Total 3157 | 119 474 1018 285 758 499 4 Wait 229 | . . 65 26 138 . . Move 2777 | 104 420 926 235 593 495 4 Hop . | . . . . . . . Pick Up 24 | 4 6 6 2 6 . . Fast Attach 14 | 7 3 1 . 2 1 . Attach 4 | . 2 1 1 . . . Detach 9 | . 2 2 1 1 3 . Swap 7 | 1 3 . 1 2 . . Drop 19 | 1 3 2 2 11 . . Fire 71 | 2 35 13 17 4 . . Melee . | . . . . . . . Ram . | . . . . . . . Kick . | . . . . . . . Crush 3 | . . 2 . 1 . . Escape Stasis . | . . . . . . . Rewire . | . . . . . . . Trap . | . . . . . . . Miscellaneous . | . . . . . . . Route ------- -11/Scrapyard -10/Materials (discovered 4 exits: *Mat x2 / *Min x2) -10/Mines (discovered 2 exits: *Mat x2) -9/Materials -9/Mines (discovered 3 exits: *Mat x2 / *Exi) -9/Exiles (discovered 2 exits: *Min x2) -8/Mines History --------- Turn | Location | Event 46 | -11/Scrapyard | Identified exit to Materials 46 | -11/Scrapyard | Discovered exit to Materials (range 16) 172 | -11/Scrapyard | Entered Materials 172 | -10/Materials | Evolved 1 slot: Utility x1 307 | -10/Materials | Build established: Hacker-Mutant 378 | -10/Materials | Identified exit to Materials 378 | -10/Materials | Discovered exit to Materials (range 9) 579 | -10/Materials | Discovered exit to Materials (range 15) 870 | -10/Materials | Identified exit to Mines 962 | -10/Materials | Entered Mines 982 | -10/Mines | Learned location of Zion (-6) 1004 | -10/Mines | Discovered exit to Materials (range 13) 1024 | -10/Mines | Found a Scrap Suit stashed away for nefarious purposes 1028 | -10/Mines | Found Scrap Suit 1274 | -10/Mines | Received a Rocket Launcher from a helpful Derelict 1401 | -10/Mines | Met a Derelict who couldn't figure out how to use a Trap Extractor 2112 | -10/Mines | Assisted by bots powering up and referring to "LRC-V3" 2144 | -10/Mines | Discovered exit to Materials (range 4) 2559 | -10/Mines | Entered Materials 2559 | -9/Materials | Accompanied by 3 allies 2559 | -9/Materials | Evolved 2 slots: Utility x2 2710 | -9/Materials | Repaired Corrupted Deuterium Engine 3032 | -9/Materials | Identified exit to Mines 3032 | -9/Materials | Discovered exit to Mines (range 7) 3065 | -9/Materials | Entered Mines 3065 | -9/Mines | Accompanied by 2 allies 3296 | -9/Mines | Joined a pair of Derelicts in attacking an 0b10 outpost 3445 | -9/Mines | Identified exit to Materials 3509 | -9/Mines | Found a hidden stash of uninstalled traps 3511 | -9/Mines | Discovered exit to Materials (range 14) 4188 | -9/Mines | Deemed a non-threat by the Exiles lab entrance 4189 | -9/Mines | Identified exit to Exiles 4189 | -9/Mines | Discovered exit to Exiles (range 5) 4221 | -9/Mines | Learned location of 1 exit from Materials 4272 | -9/Mines | Entered Exiles 4319 | -9/Exiles | Identified exit to Mines 4319 | -9/Exiles | Discovered exit to Mines (range 15) 4383 | -9/Exiles | Met 8R-AWN 4423 | -9/Exiles | Met EX-HEX 4490 | -9/Exiles | Met EX-BIN 4528 | -9/Exiles | Aligned with FarCom system 4530 | -9/Exiles | Given EX-Vault access code 4630 | -9/Exiles | Opened EX-Vault 4652 | -9/Exiles | Found Field Lobotomy Kit 4706 | -9/Exiles | Warned to stay clear of 0b10 Research branches 4787 | -9/Exiles | Met EX-DEC 4896 | -9/Exiles | Visited The Gauntlet 5227 | -9/Exiles | Discovered exit to Mines (range 14) 5275 | -9/Exiles | Left Exiles lab with Field Lobotomy Kit 5275 | -9/Exiles | Entered Mines 5285 | -8/Mines | Self-destructed Last Messages --------------- 04796_ System corrupted: Matter fused (-6). 04816_ System corrupted: FCS attempts to trigger Particle Cannon. 04816_ System corrupted: Particle Cannon misfires. W1-DM0: I was having so much fun testing the Porta-teleportal until that thief broke in and stole it along with some other prototypes, even erasing a bunch of our data in the process. If you meet any sketchy bots with Exile tech out there, forget about asking questions, just blast 'em a good one for me. 05131_ Connecting with EX-Message Board... 05227_ System corrupted: Component data lost. 05227_ EXIT=FOUND: MINES 05257_ System corrupted: Component data lost. LOCATION=MINES GOAL=ESCAPE 05275_ Receiving FarCom transmissions... Map ----- +----------------------------------------------------+ | ?????????????????????????????????? | | ?????????????????????????????????? | | ?????????????????????????????????? | | ?????????????????????????????????? | | ?????????????????????????????????? | | ?????????????????????????????????? | | ?????????????????????????????????? | | ?????????????????????????????????? | | ?????????????????????????????????? | | ?????????????????????????????????? | | ?????????????????????????????????? | | ?????????????????????????????????? | | ?????????????????????????????????? | | ?????????????????????????????????? | | ?????????????????????????????????? | | ?????????????????????????????????? | | ?????????????????????????????????? | | ?????????????????????????????????? | | ?????????????????????????????????? | | ?????????????????????????????????? | | ????????####?????????????????????? | | ???????## ##????????????????????? | | ?????### #####????????????????? | | ????## #????????????????? | | ????# ### #????????????????? | | ????# @ ##????????????????????? | | ???# ##?????????????????????? | | ???# ##??????????????????????? | | ???## #????????????????????????? | | ????# ##?????????????????????????? | | ????# ???????????????????????????? | | ????#????????????????????????????? | | ?????????????????????????????????? | | ?????????????????????????????????? | | ?????????????????????????????????? | | ?????????????????????????????????? | | ?????????????????????????????????? | | ?????????????????????????????????? | | ?????????????????????????????????? | | ?????????????????????????????????? | | ?????????????????????????????????? | | ?????????????????????????????????? | | ?????????????????????????????????? | | ?????????????????????????????????? | | ?????????????????????????????????? | | ?????????????????????????????????? | | ?????????????????????????????????? | | ?????????????????????????????????? | | ?????????????????????????????????? | | ?????????????????????????????????? | +----------------------------------------------------+ Best States ------------- Heat Dissipation 28 Energy Generation 14 Energy Capacity 275 Matter Stores 300 Matter Capacity 300 Sight Range 16 Robot Scan Range 14 Terrain Scan Density 10 Resistance: KI 35 Resistance: TH 35 Resistance: EX 35 Resistance: EM 35 Resistance: I 35 Resistance: S 35 Resistance: P 35 Utility Shielding 33 Evasion (%) 50 Recoil Reduction 2 Offensive Hacking 20 Item Schematics ----------------- None Robot Schematics ------------------ None Fabricated ------------ Nothing Repaired ---------- Deuterium Engine | 93% | -9/Materials | Corrupted Studied --------- None Alien Tech Used ----------------- None Achievements -------------- Quick And Dirty Challenges ------------ None Game ------ Seed CloakingStormSuperbattery Manual? 0 Play Time 00:23:46 Cumulative 20.7 hours Start 2026.09.17 @ 01:32:58 End 2026.09.18 @ 23:39:37 Sessions 6 Manual Loads 0 Difficulty Explorer Special Mode None Game No. 12 Rogue 0 Adventurer 6 Explorer 6 Win Type - Total 0 Types 0/0/0/0/0/0/0/0/0/0 Lore% 24 Gallery% 26 Achievement% 25 Wizard Run 0 Options --------- Layout 1 ASCII 0 Keyboard 1 Movement Arrows Keybinds 0 Fullscreen 1 Font 32/SmallcapsGlow Map View 50x35 Zoom Use 0% Tactical HUD 1 Map Filters NONE Filters NONE Steam 1 RUN: 3e8bcbec-7dfc-4880-8dbb-8b17036311b6